Workbook

Sheet Лист1
A1: Меню обедов для обучающихся 5-11-х классов с ограниченными возможностями здоровья, детей участников специальной военной операции
C2: (вариант 1 на сумму 105,00 рублей)
A3: Основание
A4: 1.Санитарно-эпидемиологические правила и нормы СанПиН 2,3/2,4,3590-20, Утверждены постановлением Главного государственного санитарного врача Российской Федерации от 27 октября 2020г. №32
A5: 2. Сборник рецептур на продукцию для обучающихся во всех образовательных учреждениях. Под ред. М.П.Могильного и В.А.Тутельяна. - М.:ДеЛи плюс, 2015 года
B6: первый
A7: Неделя: | B7: первая
A8: № рец. | B8: Приём пищи, наименование блюда | C8: Масса порции | D8: Пищевые вещества (г.) | G8: Энергетическая ценность (ккал) | H8: Витамины (мг.) | L8: Минеральные вещества (мг.)
D9: Б | E9: Ж | F9: У | H9: В1 | I9: С | J9: А | K9: Е | L9: Са | M9: Р | N9: Мg | O9: Fe
A10: 42дет. | B10: Салат из моркови с раст. маслом | C10: 100 | D10: 1.20 | E10: 0.06 | F10: 11.50 | G10: 81.70 | H10: 0.03 | I10: 2.01 | J10: - | K10: 4.34 | L10: 15.50 | M10: 31.70 | N10: 21.60 | O10: 0.40
A11: 102 | B11: Суп с бобовыми (горох) на мясном бульоне | C11: 250 | D11: 6.86 | E11: 6.58 | F11: 20.7 | G11: 185.4 | H11: 0.2 | I11: 0.8 | J11: - | K11: 17.8 | L11: 41.9 | M11: 76.4 | N11: 29.6 | O11: 2.1
A12: 265 | B12: Плов из мяса свинины | C12: 280 | D12: 23.55 | E12: 52.56 | F12: 48.24 | G12: 761.60 | H12: 0.7 | I12: 2.29 | K12: 0.46 | L12: 23.16 | M12: 325.94 | N12: 73.94 | O12: 3.44
A13: 349 | B13: Компот из сухофруктов | C13: 200 | D13: 1.2 | E13: 0.3 | F13: 47.2 | G13: 146.8 | H13: 0.02 | I13: 0.7 | K13: 0.2 | L13: 5.9 | M13: 46 | N13: 33 | O13: 0.9
A14: б/н | B14: Хлеб пшеничный | C14: 20 | D14: 1.58 | E14: 0.2 | F14: 9.66 | G14: 46.76 | H14: 0.02 | K14: 0.26 | L14: 4.6 | M14: 17.4 | N14: 6.6 | O14: 0.22
A15: б/н | B15: Хлеб ржаной | C15: 20 | D15: 0.9 | E15: 0.3 | F15: 5.2 | G15: 28 | H15: 0.01 | K15: 0.24 | L15: 6.1 | M15: 28.3 | N15: 6.6 | O15: 0.8
B16: Соль иодированная | C16: 1
A17: ИТОГО | C17: =SUM(C10:C15) -> 870 | D17: =SUM(D10:D15) -> 35.29 | E17: 60 | F17: 142.5 | G17: 1250.26 | H17: 0.98 | I17: 5.8 | J17: 0 | K17: 23.3 | L17: 97.16 | M17: 525.74 | N17: 171.34 | O17: 7.86
A19: День: | B19: второй
A20: Неделя: | B20: первая
A21: № рец. | B21: Приём пищи, наименование блюда | C21: Масса порции | D21: Пищевые вещества (г.) | G21: Энергетическая ценность (ккал) | H21: Витамины (мг.) | L21: Минеральные вещества (мг.)
D22: Б | E22: Ж | F22: У | H22: В1 | I22: С | J22: А | K22: Е | L22: Са | M22: Р | N22: Мg | O22: Fe
A23: 52 | B23: Салат из свеклы с растительным маслом | C23: 100 | D23: 1.4 | E23: 6.1 | F23: 8.3 | G23: 92.8 | H23: 0.1 | I23: 6.6 | K23: 2.7 | L23: 35.5 | M23: 40.6 | N23: 20.7 | O23: 1.3
A24: 88 | B24: Щи из свежей капусты на курином бульоне | C24: 250 | D24: 2.57 | E24: 5.15 | F24: 7.9 | G24: 124.75 | H24: 0.06 | I24: 15.78 | K24: 2.35 | L24: 51.25 | M24: 49 | N24: 22.13 | O24: 0.83
A25: 278.1 | B25: Тефтели из мяса птицы с соусом (50/50) | C25: 100 | D25: 15.7 | E25: 15.1 | F25: 14.7 | G25: 257.4 | H25: 0.16 | I25: 0.8 | J25: 30.2 | K25: 61.6 | L25: 80.7 | M25: 108 | N25: 19.9 | O25: 3.2
A26: 309 | B26: Макароны отварные | C26: 180 | D26: 6.6 | E26: 5.4 | F26: 31.74 | G26: 202.14 | H26: 0.07 | K26: 1.2 | L26: 5.8 | M26: 44.6 | N26: 25.3 | O26: 1.32
A27: 342 | B27: Компот из свежих плодов | C27: 200 | D27: 0.15 | E27: 0.15 | F27: 27.9 | G27: 114.6 | H27: 0.01 | I27: 0.9 | K27: 0.08 | L27: 17 | M27: 5.1 | N27: 7.1 | O27: 1
A28: б/н | B28: Хлеб пшеничный | C28: 20 | D28: 1.58 | E28: 0.2 | F28: 9.66 | G28: 46.76 | H28: 0.02 | K28: 0.26 | L28: 4.6 | M28: 17.4 | N28: 6.6 | O28: 0.22
A29: б/н | B29: Хлеб ржаной | C29: 20 | D29: 0.9 | E29: 0.3 | F29: 5.2 | G29: 28 | H29: 0.01 | K29: 0.24 | L29: 6.1 | M29: 28.3 | N29: 6.6 | O29: 0.8
B30: Соль иодированная | C30: 1
A31: ИТОГО | C31: =SUM(C23:C29) -> 870 | D31: =SUM(D23:D29) -> 28.9 | E31: 32.4 | F31: 105.4 | G31: 866.45 | H31: 0.43 | I31: 24.08 | J31: 30.2 | K31: 68.43 | L31: 200.95 | M31: 293 | N31: 108.33 | O31: 8.67
A33: День: | B33: третий
A34: Неделя: | B34: первая
A35: № рец. | B35: Приём пищи, наименование блюда | C35: Масса порции | D35: Пищевые вещества (г.) | G35: Энергетическая ценность (ккал) | H35: Витамины (мг.) | L35: Минеральные вещества (мг.)
D36: Б | E36: Ж | F36: У | H36: В1 | I36: С | J36: А | K36: Е | L36: Са | M36: Р | N36: Мg | O36: Fe
A37: 45/47 | B37: Салат из свежей капусты или квашеной | C37: 100 | D37: 0.10 | E37: 3.10 | F37: 6.50 | G37: 60.40 | H37: 0.01 | I37: 10.10 | K37: 9.24 | L37: 14.90 | M37: 16.90 | N37: 9.10 | O37: 0.30
A38: 112 | B38: Суп с макаронными изделиями и картофелем на кур. бульоне | C38: 250 | D38: 3.37 | E38: 2.98 | F38: 15.69 | G38: 144 | H38: 0.09 | I38: 6.08 | K38: 1.45 | L38: 31.5 | M38: 57.73 | N38: 23.8 | O38: 1
A39: 294 | B39: Котлета рубленная из мяса птицы с красным соусом № 331 (50/50) | C39: 100 | D39: 10.20 | E39: 11.90 | F39: 12.60 | G39: 199.80 | H39: 0.06 | I39: 1.00 | J39: 45.90 | L39: 45.50 | M39: 66.90 | N39: 16.50 | O39: 1.20
A40: 302 | B40: Каша рассыпчатая гречневая | C40: 180 | D40: 10.32 | E40: 7.3 | F40: 46.4 | G40: 292.56 | H40: 0.02 | K40: 0.7 | L40: 17.8 | M40: 244.7 | N40: 162.9 | O40: 5.5
A41: 349 | B41: Компот из сухофруктов | C41: 200 | D41: 1.2 | E41: 0.3 | F41: 47.2 | G41: 146.8 | H41: 0.02 | I41: 0.7 | K41: 0.2 | L41: 5.9 | M41: 46 | N41: 33 | O41: 0.9
A42: б/н | B42: Хлеб пшеничный | C42: 20 | D42: 1.58 | E42: 0.2 | F42: 9.66 | G42: 46.76 | H42: 0.02 | K42: 0.26 | L42: 4.6 | M42: 17.4 | N42: 6.6 | O42: 0.22
A43: б/н | B43: Хлеб ржаной | C43: 20 | D43: 0.9 | E43: 0.3 | F43: 5.2 | G43: 28 | H43: 0.01 | K43: 0.24 | L43: 6.1 | M43: 28.3 | N43: 6.6 | O43: 0.8
B44: соль иодированная | C44: 1
A45: ИТОГО | C45: =SUM(C37:C43) -> 870 | D45: =SUM(D37:D43) -> 27.67 | E45: 26.08 | F45: 143.25 | G45: 918.32 | H45: 0.23 | I45: 17.88 | J45: 45.9 | K45: 12.09 | L45: 126.3 | M45: 477.93 | N45: 258.5 | O45: 9.92
A47: День: | B47: четвертый
A48: Неделя: | B48: первая
A49: № рец. | B49: Приём пищи, наименование блюда | C49: Масса порции | D49: Пищевые вещества (г.) | G49: Энергетическая ценность (ккал) | H49: Витамины (мг.) | L49: Минеральные вещества (мг.)
D50: Б | E50: Ж | F50: У | H50: В1 | I50: С | J50: А | K50: Е | L50: Са | M50: Р | N50: Мg | O50: Fe
A51: 52 | B51: Салат из свеклы на растительном масле | C51: 100 | D51: 1.4 | E51: 6.1 | F51: 8.3 | G51: 92.8 | H51: 0.1 | I51: 6.6 | K51: 2.7 | L51: 35.5 | M51: 40.6 | N51: 20.7 | O51: 1.3
A52: 96 | B52: Рассольник по -Ленинградски на курином бульоне | C52: 250 | D52: 2.82 | E52: 5.29 | F52: 11.98 | G52: 142.25 | H52: 0.09 | I52: 8.38 | K52: 2.35 | L52: 31.15 | M52: 56.73 | N52: 24.18 | O52: 0.93
A53: 297 | B53: Фрикадельки из мяса птицы с соусом № 329 (50/50) | C53: 100 | D53: 9.7 | E53: 12.4 | F53: 9.7 | G53: 191 | H53: 0.33 | I53: 2.2 | J53: 43.3 | K53: 105.5 | L53: 70.6 | M53: 65.2 | N53: 62 | O53: 0.6
A54: 304 | B54: Рис отварной | C54: 180 | D54: 6.54 | E54: 8.64 | F54: 54 | G54: 251.64 | H54: 0.04 | K54: 0.3 | L54: 1.6 | M54: 73.14 | N54: 19.6 | O54: 0.6
A55: 342 | B55: Компот из свежих яблок | C55: 200 | D55: 0.15 | E55: 0.15 | F55: 27.9 | G55: 114.6 | H55: 0.01 | I55: 0.9 | K55: 0.08 | L55: 17 | M55: 5.1 | N55: 7.1 | O55: 1
A56: б/н | B56: Хлеб пшеничный | C56: 20 | D56: 1.58 | E56: 0.2 | F56: 9.66 | G56: 46.76 | H56: 0.02 | K56: 0.26 | L56: 4.6 | M56: 17.4 | N56: 6.6 | O56: 0.22
A57: б/н | B57: Хлеб ржаной | C57: 20 | D57: 0.9 | E57: 0.3 | F57: 5.2 | G57: 28 | H57: 0.01 | K57: 0.24 | L57: 6.1 | M57: 28.3 | N57: 6.6 | O57: 0.8
B58: Соль иодированная | C58: 1
A59: ИТОГО: | C59: =SUM(C51:C57) -> 870 | D59: =SUM(D51:D57) -> 23.09 | E59: 33.08 | F59: 126.74 | G59: 867.05 | H59: 0.6 | I59: 18.08 | J59: 43.3 | K59: 111.43 | L59: 166.55 | M59: 286.47 | N59: 146.78 | O59: 5.45
A60: День: | B60: пятый
A61: Неделя: | B61: первая
A62: № рец. | B62: Приём пищи, наименование блюда | C62: Масса порции | D62: Пищевые вещества (г.) | G62: Энергетическая ценность (ккал) | H62: Витамины (мг.) | L62: Минеральные вещества (мг.)
D63: Б | E63: Ж | F63: У | H63: В1 | I63: С | J63: А | K63: Е | L63: Са | M63: Р | N63: Мg | O63: Fe
A64: 42дет. | B64: Салат из моркови с раст. маслом | C64: 100 | D64: 1.20 | E64: 0.06 | F64: 11.50 | G64: 81.70 | H64: 0.03 | I64: 2.01 | J64: - | K64: 4.34 | L64: 15.50 | M64: 31.70 | N64: 21.60 | O64: 0.40
A65: 82 | B65: Борщ с картофелем и капустой на мясном бульоне | C65: 250 | D65: 2.6 | E65: 5.12 | F65: 10.93 | G65: 138.75 | H65: 0.05 | I65: 10.68 | K65: 2.4 | L65: 51.73 | M65: 54.6 | N65: 26.13 | O65: 1.23
A66: 234 | B66: Котлета или биточек рыбные | C66: 60 | D66: 7.9 | E66: 6.0 | F66: 10.2 | G66: 127.0 | H66: 0.1 | I66: 1.0 | J66: 20.2 | K66: 3.5 | L66: 61.6 | M66: 138.4 | N66: 47.6 | O66: 0.2
A67: 329 | B67: Соус красный | C67: 40 | D67: 1.4 | E67: 4.5 | F67: 5.0 | G67: 66.4 | H67: 0.0 | I67: 0.2 | J67: 0.2 | L67: 38.2 | M67: 6.3 | N67: 32.9 | O67: 0.1
A68: 312 | B68: Картофельное пюре | C68: 180 | D68: 3.7 | E68: 5.8 | F68: 24.5 | G68: 164.8 | H68: 0.1 | I68: 21.8 | K68: 0.2 | L68: 44.4 | M68: 103.9 | N68: 33.4 | O68: 1.2
A69: 349 | B69: Компот из сухофруктов | C69: 200 | D69: 1.2 | E69: 0.3 | F69: 47.2 | G69: 146.8 | H69: 0.02 | I69: 0.7 | K69: 0.2 | L69: 5.9 | M69: 46 | N69: 33 | O69: 0.9
A70: б/н | B70: Хлеб пшеничный | C70: 30 | D70: 2.25 | E70: 0.84 | F70: 15.51 | G70: 70.14 | H70: 0.3 | I70: - | J70: - | K70: 0.39 | L70: 6.9 | M70: 26.1 | N70: 9.9 | O70: 0.33
A71: б/н | B71: Хлеб ржаной | C71: 30 | D71: 1.4 | E71: 0.47 | F71: 7.8 | G71: 42 | H71: 0.04 | K71: 0.36 | L71: 9.2 | M71: 42.4 | N71: 10 | O71: 1.24
B72: Соль иодированная | C72: 1
A73: ИТОГО: | C73: =SUM(C64:C71) -> 890 | D73: =SUM(D64:D71) -> 21.69 | E73: 23.11 | F73: 132.6 | G73: 837.51 | H73: 0.696 | I73: 36.31 | J73: 20.32 | K73: 11.43 | L73: 233.39 | M73: 449.42 | N73: 214.53 | O73: 5.68
A75: День: | B75: шестой
A76: Неделя: | B76: вторая
A77: № рец. | B77: Приём пищи, наименование блюда | C77: Масса порции | D77: Пищевые вещества (г.) | G77: Энергетическая ценность (ккал) | H77: Витамины (мг.) | L77: Минеральные вещества (мг.)
D78: Б | E78: Ж | F78: У | H78: В1 | I78: С | J78: А | K78: Е | L78: Са | M78: Р | N78: Мg | O78: Fe
A79: 52 | B79: Салат из свеклы с растительным маслом | C79: 100 | D79: 1.4 | E79: 6.1 | F79: 8.3 | G79: 92.8 | H79: 0.1 | I79: 6.6 | K79: 2.7 | L79: 35.5 | M79: 40.6 | N79: 20.7 | O79: 1.3
A80: 102 | B80: Суп с бобовыми (горох) на кур. бульоне | C80: 250 | D80: 6.86 | E80: 6.58 | F80: 20.7 | G80: 185.4 | H80: 0.2 | I80: 0.8 | J80: - | K80: 17.8 | L80: 41.9 | M80: 76.4 | N80: 29.6 | O80: 2.1
A81: 294 | B81: Котлета рубленная из мяса птицы с красным соусом № 331 (50/50) | C81: 100 | D81: 10.20 | E81: 11.90 | F81: 12.60 | G81: 199.80 | H81: 0.06 | I81: 1.00 | J81: 45.90 | L81: 45.50 | M81: 66.90 | N81: 16.50 | O81: 1.20
A82: 309 | B82: Макароны отварные | C82: 180 | D82: 6.6 | E82: 5.4 | F82: 31.74 | G82: 202.14 | H82: 0.07 | K82: 1.2 | L82: 5.8 | M82: 44.6 | N82: 25.3 | O82: 1.32
A83: 349 | B83: Компот из сухофруктов | C83: 200 | D83: 1.2 | E83: 0.3 | F83: 47.2 | G83: 146.8 | H83: 0.02 | I83: 0.7 | K83: 0.2 | L83: 5.9 | M83: 46 | N83: 33 | O83: 0.9
A84: б/н | B84: Хлеб пшеничный | C84: 20 | D84: 1.58 | E84: 0.2 | F84: 9.66 | G84: 46.76 | H84: 0.02 | K84: 0.26 | L84: 4.6 | M84: 17.4 | N84: 6.6 | O84: 0.22
A85: б/н | B85: Хлеб ржаной | C85: 20 | D85: 0.9 | E85: 0.3 | F85: 5.2 | G85: 28 | H85: 0.01 | K85: 0.24 | L85: 6.1 | M85: 28.3 | N85: 6.6 | O85: 0.8
B86: Соль иодированная | C86: 1 | J86: 45.9
A87: ИТОГО: | C87: =SUM(C79:C85) -> 870 | D87: =SUM(D79:D85) -> 28.74 | E87: 30.78 | F87: 135.4 | G87: 901.7 | H87: 0.48 | I87: 9.1 | J87: 45.9 | K87: 22.4 | L87: 145.3 | M87: 320.2 | N87: 138.3 | O87: 7.84
A89: День: | B89: седьмой
A90: Неделя: | B90: вторая
A91: № рец. | B91: Приём пищи, наименование блюда | C91: Масса порции | D91: Пищевые вещества (г.) | G91: Энергетическая ценность (ккал) | H91: Витамины (мг.) | L91: Минеральные вещества (мг.)
D92: Б | E92: Ж | F92: У | H92: В1 | I92: С | J92: А | K92: Е | L92: Са | M92: Р | N92: Мg | O92: Fe
A93: 42дет. | B93: Салат из моркови с раст. маслом | C93: 100 | D93: 1.20 | E93: 0.06 | F93: 11.50 | G93: 81.70 | H93: 0.03 | I93: 2.01 | J93: - | K93: 4.34 | L93: 15.50 | M93: 31.70 | N93: 21.60 | O93: 0.40
A94: 82 | B94: Борщ с картофелем и капустой на курином бульоне | C94: 250 | D94: 2.6 | E94: 5.12 | F94: 10.93 | G94: 138.75 | H94: 0.05 | I94: 10.68 | K94: 2.4 | L94: 51.73 | M94: 54.6 | N94: 26.13 | O94: 1.23
A95: 278.1 | B95: Тефтели из мяса птицы с соусом (50/50) | C95: 100 | D95: 15.7 | E95: 15.1 | F95: 14.7 | G95: 257.4 | H95: 0.16 | I95: 0.8 | J95: 30.2 | K95: 61.6 | L95: 80.7 | M95: 108 | N95: 19.9 | O95: 3.2
A96: 302 | B96: Каша рассыпчатая гречневая | C96: 180 | D96: 10.32 | E96: 7.3 | F96: 46.4 | G96: 292.56 | H96: 0.02 | K96: 0.7 | L96: 17.8 | M96: 244.7 | N96: 162.9 | O96: 5.5
A97: 342 | B97: Компот из свежих яблок | C97: 200 | D97: 0.15 | E97: 0.15 | F97: 27.9 | G97: 114.6 | H97: 0.01 | I97: 0.9 | K97: 0.08 | L97: 17 | M97: 5.1 | N97: 7.1 | O97: 1
A98: б/н | B98: Хлеб пшеничный | C98: 20 | D98: 1.58 | E98: 0.2 | F98: 9.66 | G98: 46.76 | H98: 0.02 | K98: 0.26 | L98: 4.6 | M98: 17.4 | N98: 6.6 | O98: 0.22
A99: б/н | B99: Хлеб ржаной | C99: 20 | D99: 0.9 | E99: 0.3 | F99: 5.2 | G99: 28 | H99: 0.01 | K99: 0.24 | L99: 6.1 | M99: 28.3 | N99: 6.6 | O99: 0.8
B100: Соль иодированная | C100: 1
A101: ИТОГО: | C101: =SUM(C93:C99) -> 870 | D101: =SUM(D93:D99) -> 32.45 | E101: 28.23 | F101: 126.29 | G101: 959.77 | H101: 0.3 | I101: 14.39 | J101: 30.2 | K101: 69.62 | L101: 193.43 | M101: 489.8 | N101: 250.83 | O101: 12.35
A103: День: | B103: восьмой
A104: Неделя: | B104: вторая | M104: Ъ
A105: № рец. | B105: Приём пищи, наименование блюда | C105: Масса порции | D105: Пищевые вещества (г.) | G105: Энергетическая ценность (ккал) | H105: Витамины (мг.) | L105: Минеральные вещества (мг.)
D106: Б | E106: Ж | F106: У | H106: В1 | I106: С | J106: А | K106: Е | L106: Са | M106: Р | N106: Мg | O106: Fe
A107: 45/47 | B107: Салат из свежей капусты или квашеной | C107: 100 | D107: 0.10 | E107: 3.10 | F107: 6.50 | G107: 60.40 | H107: 0.01 | I107: 10.10 | K107: 9.24 | L107: 14.90 | M107: 16.90 | N107: 9.10 | O107: 0.30
A108: 99 | B108: Суп овощной на мясном бульоне | C108: 250 | D108: 1.6 | E108: 4.99 | F108: 9.1 | G108: 95.25 | H108: 0.08 | I108: 17.9 | K108: 2.3 | L108: 34.85 | M108: 49.3 | N108: 20.75 | O108: 0.75
A109: 259 | B109: Жаркое по-домашнему с мясом свинины | C109: 280 | D109: 19.67 | E109: 47.18 | F109: 26.46 | G109: 612.78 | H109: 0.56 | I109: 10.78 | J109: - | K109: 4.9 | L109: 45.92 | M109: 288.26 | N109: 68.54 | O109: 4.76
A110: 349 | B110: Компот из сухофруктов | C110: 200 | D110: 1.2 | E110: 0.3 | F110: 47.2 | G110: 146.8 | H110: 0.02 | I110: 0.7 | K110: 0.2 | L110: 5.9 | M110: 46 | N110: 33 | O110: 0.9
A111: б/н | B111: Хлеб пшеничный | C111: 30 | D111: 2.25 | E111: 0.84 | F111: 15.51 | G111: 70.14 | H111: 0.3 | I111: - | J111: - | K111: 0.39 | L111: 6.9 | M111: 26.1 | N111: 9.9 | O111: 0.33
A112: б/н | B112: Хлеб ржаной | C112: 30 | D112: 1.4 | E112: 0.47 | F112: 7.8 | G112: 42 | H112: 0.04 | K112: 0.36 | L112: 9.2 | M112: 42.4 | N112: 10 | O112: 1.24
B113: Соль иодированная | C113: 1
A114: ИТОГО: | C114: =SUM(C107:C112) -> 890 | D114: =SUM(D107:D112) -> 26.22 | E114: 56.88 | F114: 112.57 | G114: 1027.37 | H114: 1.01 | I114: 39.48 | J114: 0 | K114: 17.39 | L114: 117.67 | M114: 468.96 | N114: 151.29 | O114: 8.28
A116: День: | B116: девятый
A117: Неделя: | B117: вторая
A118: № рец. | B118: Приём пищи, наименование блюда | C118: Масса порции | D118: Пищевые вещества (г.) | G118: Энергетическая ценность (ккал) | H118: Витамины (мг.) | L118: Минеральные вещества (мг.)
D119: Б | E119: Ж | F119: У | H119: В1 | I119: С | J119: А | K119: Е | L119: Са | M119: Р | N119: Мg | O119: Fe
A120: 67 | B120: Винегрет овощной с маслом растительным | C120: 100 | D120: 1.4 | E120: 10 | F120: 7.3 | G120: 125.1 | H120: 0.03 | I120: 9.7 | K120: 4.5 | L120: 31.2 | M120: 43.2 | N120: 19.5 | O120: 0.6
A121: 96 | B121: Рассольник по-Ленинградски на кур.бульоне | C121: 250 | D121: 2.82 | E121: 5.29 | F121: 11.98 | G121: 142.25 | H121: 0.09 | I121: 8.38 | K121: 2.35 | L121: 31.15 | M121: 56.73 | N121: 24.18 | O121: 0.93
A122: 291 | B122: Плов из мяса птицы | C122: 280 | D122: 23.66 | E122: 14.7 | F122: 49.98 | G122: 427.42 | H122: 0.14 | I122: 8.43 | J122: 27.16 | K122: 0.7 | L122: 59.22 | M122: 245.42 | N122: 75.66 | O122: 2.66
A123: 342 | B123: Компот из свежих яблок | C123: 200 | D123: 0.15 | E123: 0.15 | F123: 27.9 | G123: 114.6 | H123: 0.01 | I123: 0.9 | K123: 0.08 | L123: 17 | M123: 5.1 | N123: 7.1 | O123: 1
A124: б/н | B124: Хлеб пшеничный | C124: 30 | D124: 2.25 | E124: 0.84 | F124: 15.51 | G124: 70.14 | H124: 0.3 | I124: - | J124: - | K124: 0.39 | L124: 6.9 | M124: 26.1 | N124: 9.9 | O124: 0.33
A125: б/н | B125: Хлеб ржаной | C125: 30 | D125: 1.4 | E125: 0.47 | F125: 7.8 | G125: 42 | H125: 0.04 | K125: 0.36 | L125: 9.2 | M125: 42.4 | N125: 10 | O125: 1.24
B126: Соль иодированная | C126: 1
A127: ИТОГО | C127: =SUM(C120:C125) -> 890 | D127: =SUM(D120:D125) -> 31.68 | E127: 31.45 | F127: 120.47 | G127: 921.51 | H127: 0.61 | I127: 27.41 | J127: 27.16 | K127: 8.38 | L127: 154.67 | M127: 418.95 | N127: 146.34 | O127: 6.76
A129: День: | B129: десятый
A130: Неделя | B130: вторая
A131: № рец. | B131: Приём пищи, наименование блюда | C131: Масса порции | D131: Пищевые вещества (г.) | G131: Энергетическая ценность (ккал) | H131: Витамины (мг.) | L131: Минеральные вещества (мг.)
D132: Б | E132: Ж | F132: У | H132: В1 | I132: С | J132: А | K132: Е | L132: Са | M132: Р | N132: Мg | O132: Fe
A133: 45/47 | B133: Салат из свежей капусты или квашеной | C133: 100 | D133: 0.10 | E133: 3.10 | F133: 6.50 | G133: 60.40 | H133: 0.01 | I133: 10.10 | K133: 9.24 | L133: 14.90 | M133: 16.90 | N133: 9.10 | O133: 0.30
A134: 88 | B134: Щи из свежей капусты с картофелем на курином бульоне | C134: 250 | D134: 2.57 | E134: 5.15 | F134: 7.9 | G134: 124.75 | H134: 0.06 | I134: 15.78 | K134: 2.35 | L134: 51.25 | M134: 49 | N134: 22.13 | O134: 0.83
A135: 278.1 | B135: Тефтели из мяса птицы с соусом (50/50) | C135: 100 | D135: 15.7 | E135: 15.1 | F135: 14.7 | G135: 257.4 | H135: 0.16 | I135: 0.8 | J135: 30.2 | K135: 61.6 | L135: 80.7 | M135: 108 | N135: 19.9 | O135: 3.2
A136: 312 | B136: Картофельное пюре | C136: 180 | D136: 3.7 | E136: 5.8 | F136: 24.5 | G136: 164.8 | H136: 0.1 | I136: 21.8 | K136: 0.2 | L136: 44.4 | M136: 103.9 | N136: 33.4 | O136: 1.2
A137: 349 | B137: Компот из сухофруктов | C137: 200 | D137: 1.2 | E137: 0.3 | F137: 47.2 | G137: 146.8 | H137: 0.02 | I137: 0.7 | K137: 0.2 | L137: 5.9 | M137: 46 | N137: 33 | O137: 0.9
A138: б/н | B138: Хлеб пшеничный | C138: 20 | D138: 1.58 | E138: 0.2 | F138: 9.66 | G138: 46.76 | H138: 0.02 | K138: 0.26 | L138: 4.6 | M138: 17.4 | N138: 6.6 | O138: 0.22
A139: б/н | B139: Хлеб ржаной | C139: 20 | D139: 0.9 | E139: 0.3 | F139: 5.2 | G139: 28 | H139: 0.01 | K139: 0.24 | L139: 6.1 | M139: 28.3 | N139: 6.6 | O139: 0.8
B140: Соль иодированная | C140: 1
A141: ИТОГО: | C141: =SUM(C133:C139) -> 870 | D141: =SUM(D133:D139) -> 25.75 | E141: 29.95 | F141: 115.66 | G141: 828.91 | H141: 0.4 | I141: 49.18 | J141: 30.2 | K141: 74.13 | L141: 207.85 | M141: 369.5 | N141: 130.73 | O141: 7.45
A144: Основные показатели в пищевых веществах и энергетической ценности
A145: ( Приложение № 10 к СанПиН 2.3/2.4.3590-20)
B147: Основные показатели дни по меню | E147: пищевые вещества (г) | K147: Энергетическая ценность (ккал)
E148: Б | G148: Ж | I148: У
B149: 1 день | E149: 35.29 | G149: 60 | I149: 142.5 | K149: 1250.26
B150: 2 день | E150: 28.9 | G150: 32.4 | I150: 105.4 | K150: 866.45
B151: 3 день | E151: 27.67 | G151: 26.08 | I151: 143.25 | K151: 918.32
B152: 4 день | E152: 23.09 | G152: 33.08 | I152: 126.74 | K152: 867.05
B153: 5 день | E153: 21.7 | G153: 23.11 | I153: 132.6 | K153: 837.5
B154: 6 день | E154: 28.74 | G154: 30.8 | I154: 135.4 | K154: 901.7
B155: 7 день | E155: 32.45 | G155: 28.23 | I155: 126.29 | K155: 959.77
B156: 8 день | E156: 26.22 | G156: 56.88 | I156: 112.57 | K156: 1027.37
B157: 9 день | E157: 31.68 | G157: 31.45 | I157: 120.47 | K157: 921.51
B158: 10 день | E158: 25.75 | G158: 29.95 | I158: 115.66 | K158: 828.91
B159: Итого за весь период: | E159: =SUM(E149:F158) -> 281.48 | G159: =SUM(G149:H158) -> 351.96 | I159: =SUM(I149:J158) -> 1260.88 | K159: =SUM(K149:N158) -> 9378.85
B160: Итого в среднем за 1 день(прием пищи -обед) | E160: =SUM(E159/10) -> 28.148 | G160: =SUM(G159/10) -> 35.196 | I160: =SUM(I159/10) -> 126.088 | K160: =SUM(K159/10) -> 937.885
B161: Обед составляет 30% от дневной нормы | E161: 30% от нормы 90 г составляет 27 г | G161: 30% от дневной нормы 92 г составляет 27,6 г | I161: 30% от дневной нормы383 г составляет 114,9 г | K161: 30% от дневной нормы2720 ккал составляет 816 ккал
